bitfinex/quotes_ETHUSD_20260107
["timestamp","ask_amount","ask_price","bid_price","bid_amount"]
[1767825201275,0.01228195,3162.5,3162.0,0.05]
[1767825202884,0.01228195,3162.5,3161.9,1.60813228]
[1767825203668,0.83,3162.4,3161.9,1.60813228]
[1767825204889,0.002,3162.3,3161.9,1.60813228]
[1767825208378,0.782,3162.4,3162.1,1.60813228]
[1767825208573,3.16398827,3162.6,3162.1,1.60813228]
[1767825208783,0.83,3162.4,3162.1,1.60813228]
[1767825210083,0.83,3162.4,3161.8,3.16274592]
[1767825210084,0.83,3162.4,3161.9,1.60813228]
[1767825210588,0.01185249,3162.5,3161.9,1.60813228]
[1767825210787,0.83,3162.4,3161.9,1.60813228]
[1767825211586,3.1758027,3162.6,3161.9,1.60813228]
[1767825211757,0.83,3162.5,3161.9,1.60813228]
[1767825212292,3.99206821,3162.5,3161.9,1.60813228]
[1767825212494,0.83,3162.5,3161.9,1.60813228]
[1767825213382,3.80958115,3162.6,3161.9,1.60813228]
[1767825213586,0.83,3162.5,3161.9,1.60813228]
[1767825214694,4.00367871,3162.5,3161.9,1.60813228]
[1767825216067,3.99206426,3162.5,3161.9,1.60813228]
[1767825216279,0.83,3162.5,3161.9,1.60813228]
[1767825216792,0.83,3162.4,3161.9,1.60813228]
[1767825216976,3.16206395,3162.5,3162.3,1.58856116]
[1767825217176,0.83,3162.4,3162.3,1.58856116]
[1767825218693,3.16399712,3162.6,3162.3,1.58856116]
[1767825218896,0.83,3162.4,3162.3,1.58856116]
[1767825219077,0.83,3162.5,3162.3,1.58856116]
[1767825219266,0.002,3162.6,3162.3,1.58856116]
[1767825219468,0.83,3162.5,3162.3,1.58856116]
[1767825220574,0.83,3162.5,3162.2,0.001]
[1767825220981,3.99205636,3162.5,3162.2,0.001]
[1767825221500,4.71174035,3162.5,3162.0,1.58856116]
[1767825221804,0.83,3162.4,3162.0,1.58856116]
[1767825223591,0.83,3162.4,3161.6,3.16292211]
[1767825223592,0.00285245,3162.3,3161.6,1.58856116]
[1767825223985,3.99218953,3162.4,3161.6,1.58856116]
[1767825224182,3.16218953,3162.4,3161.6,1.74741728]
[1767825224382,0.83,3162.3,3161.6,1.74741728]
[1767825225104,0.83,3162.2,3161.6,1.74741728]
[1767825226403,0.83,3162.1,3161.6,1.74741728]
[1767825226899,3.16230543,3162.3,3161.6,1.74741728]
[1767825227106,0.83,3162.2,3161.8,1.58856116]
[1767825228713,0.83,3162.2,3162.0,1.58856116]
[1767825232025,0.003,3163.2,3162.0,3.16255534]
[1767825232193,3.16441592,3163.2,3162.1,1.58856116]
[1767825232404,3.16441592,3163.2,3162.3,1.58856116]
[1767825232753,3.16441592,3163.2,3162.2,0.79136718]
[1767825232754,10.13,3164.0,3163.0,1.58856116]
[1767825232885,1.82265911,3165.3,3163.7,0.25952256]
[1767825232886,1.0890483,3164.9,3163.7,0.25952256]
[1767825233083,1.0890483,3164.9,3163.6,1.58856116]
[1767825233343,1.0890483,3164.9,3163.7,0.25952256]
[1767825233621,1.45908408,3164.7,3163.0,0.25952256]
[1767825233824,1.45908408,3164.4,3162.3,1.58856116]
[1767825234047,1.45908408,3164.2,3162.3,1.58856116]
[1767825234332,1.45908408,3163.4,3161.7,1.58856116]
[1767825234539,1.45908408,3163.2,3161.7,1.58856116]
[1767825234829,1.45908408,3163.2,3159.7,1.59519015]
[1767825234830,1.45908408,3162.9,3161.4,1.58856116]
[1767825235032,1.45908408,3162.4,3160.0,1.58856116]
[1767825235202,1.45908408,3162.2,3161.0,1.58856116]
[1767825235536,1.5372058,3162.3,3161.1,1.58856116]
[1767825235537,2.28908408,3162.1,3161.1,1.58856116]
[1767825236541,0.83,3162.0,3161.1,1.58856116]
[1767825236701,0.83,3162.0,3161.2,0.47521015]
[1767825236904,1.45908408,3162.1,3161.2,0.47521015]
[1767825237123,0.83,3162.0,3161.2,0.47521015]
[1767825237325,0.83,3162.0,3161.3,1.58856116]
[1767825237845,1.45908408,3161.9,3161.0,3.16353542]
[1767825238012,1.68799249,3161.9,3160.8,4.75230728]
[1767825238207,1.68799249,3161.9,3161.0,3.16355264]
[1767825238538,1.68799249,3161.9,3160.8,3.16375542]
[1767825238705,1.68799249,3161.9,3160.6,4.75250773]
[1767825239030,1.68799249,3161.9,3160.7,0.47525077]
[1767825239203,1.68799249,3161.9,3160.8,3.16374808]
[1767825239404,1.68799249,3161.9,3160.5,3.16403415]
[1767825239603,1.45908408,3161.8,3160.5,3.16403415]
[1767825239826,3.39157269,3161.9,3160.5,3.16403415]
[1767825239827,1.45908408,3161.6,3160.6,0.79166799]
[1767825240031,2.28908408,3161.5,3160.6,0.79166799]
[1767825240236,1.45908408,3161.4,3161.3,0.001]
[1767825240624,1.45908408,3161.4,3160.6,0.79166799]
[1767825241437,1.68799249,3161.4,3160.3,3.16425655]
[1767825242157,1.68799249,3161.4,3159.1,4.65315988]
[1767825242158,1.49316385,3161.3,3159.2,3.16529056]
[1767825242328,1.49316385,3161.3,3159.5,1.48875048]
[1767825242656,1.49316385,3161.1,3159.6,4.65261988]
[1767825242956,1.49316385,3160.9,3159.7,0.46536199]
[1767825243333,1.49316385,3160.9,3159.6,3.16495113]
[1767825243656,1.49316385,3160.7,3159.5,0.001]
[1767825243955,1.49316385,3160.5,3159.5,0.001]
[1767825244257,1.49316385,3160.3,3159.5,0.001]
[1767825244551,1.72548024,3160.3,3159.5,0.001]
[1767825245628,1.49316385,3160.1,3159.5,0.001]
[1767825246958,2.32316385,3160.0,3159.5,0.001]
[1767825247163,1.49316385,3159.9,3159.5,0.001]
[1767825247965,0.83,3159.8,3159.5,0.001]
[1767825248531,1.49316385,3159.7,3159.5,0.001]
[1767825250562,2.42996715,3159.6,3159.5,0.001]
[1767825253163,1.59996715,3159.5,3158.9,3.16565893]
[1767825253363,1.59996715,3159.5,3158.9,3.79880005]
[1767825253862,1.59996715,3159.5,3158.4,1.4838662]
[1767825254033,1.59996715,3159.5,3158.3,1.4838662]
[1767825254236,1.59996715,3159.5,3158.3,4.6501243]
[1767825254432,1.59996715,3159.3,3158.0,3.16651417]
[1767825254638,1.59996715,3159.1,3158.1,0.78170267]
[1767825254941,1.59996715,3158.9,3158.1,0.78170267]
[1767825255166,1.59996715,3158.9,3157.9,3.16663363]
[1767825255338,1.59996715,3158.9,3157.9,6.33329501]
[1767825255535,1.59996715,3158.9,3157.9,7.81716121]
[1767825256169,0.83,3158.8,3158.0,1.4838662]
[1767825256377,0.83,3158.7,3158.2,6.33272116]
[1767825257146,1.59996715,3159.2,3158.3,1.4838662]
[1767825257436,1.66169185,3162.6,3158.6,1.4838662]
[1767825257437,1.59996715,3160.3,3158.6,1.4838662]
[1767825257656,1.59996715,3160.3,3158.8,1.4838662]
[1767825257843,1.59996715,3160.1,3158.8,1.4838662]
[1767825258439,1.59996715,3160.1,3159.0,1.4838662]
[1767825258637,1.59996715,3160.1,3159.1,2.5819505]
[1767825259968,1.59996715,3160.1,3159.2,1.4838662]
[1767825260543,1.59996715,3160.1,3159.3,6.33051624]
[1767825264148,1.59996715,3160.1,3159.6,0.001]
[1767825266270,3.16368025,3160.9,3159.6,1.4848662]
[1767825266271,0.03169888,3160.6,3159.6,1.4848662]
[1767825266472,1.59996715,3160.6,3159.6,1.4848662]
[1767825268360,1.59996715,3160.6,3159.7,6.32971484]
[1767825268558,1.59996715,3160.6,3159.8,0.7814581]
[1767825270650,1.59996715,3160.6,3159.9,3.1646571]
[1767825271777,1.59996715,3160.6,3159.8,3.94619053]
[1767825272760,1.59996715,3160.6,3159.8,7.11094779]
[1767825273992,1.59996715,3160.6,3159.8,3.94619053]
[1767825274199,1.59996715,3160.6,3159.9,0.71110271]
[1767825274566,1.54698339,3160.4,3159.9,0.71110271]
[1767825274779,1.54698339,3160.4,3159.7,3.1647916]
[1767825274980,1.54698339,3160.4,3159.6,0.001]
[1767825275292,1.54698339,3160.2,3159.6,0.001]
[1767825277158,1.54698339,3160.0,3159.6,0.001]
[1767825277357,1.54698339,3159.9,3159.6,0.001]
[1767825282204,1.57868227,3159.9,3159.6,0.001]
[1767825282498,0.50601401,3159.9,3159.0,1.65243115]
[1767825282699,1.54698339,3159.8,3159.0,1.65243115]
[1767825283979,1.54698339,3159.8,3159.1,3.16545851]
[1767825284301,1.54698339,3159.8,3159.2,1.65243115]
[1767825285078,1.54698339,3159.8,3159.1,3.16545851]
[1767825285315,1.54698339,3159.8,3159.0,4.81795621]
[1767825285612,1.57868227,3159.7,3159.0,1.65243115]
[1767825285807,1.57868227,3159.7,3159.1,1.65243115]
[1767825286104,1.54698339,3159.7,3159.1,1.65243115]
[1767825286309,1.54698339,3159.7,3159.0,4.10845246]
[1767825286607,1.54698339,3159.7,3159.1,1.65243115]
[1767825287314,1.54698339,3159.7,3159.0,0.94290408]
[1767825287608,1.54698339,3159.7,3159.0,1.65243115]
[1767825287773,1.57868227,3159.7,3159.0,1.65243115]
[1767825287972,1.57868227,3159.7,3158.9,3.78]
[1767825289314,1.57868227,3159.7,3158.9,6.94558769]
[1767825289517,1.57868227,3159.7,3158.9,3.78]
[1767825289820,1.53758979,3159.6,3158.9,3.78]
[1767825291103,1.53758979,3159.6,3158.7,6.94581957]
[1767825291488,1.53758979,3159.5,3158.7,3.78]
[1767825291800,1.53758979,3159.5,3158.7,6.94584234]
[1767825292002,1.53758979,3159.5,3158.8,3.16573866]
[1767825292604,1.53758979,3159.5,3158.7,6.94582038]
[1767825292800,1.53758979,3159.5,3158.7,8.12206167]
[1767825292976,1.53758979,3159.5,3158.7,4.95624129]
[1767825293989,1.53758979,3159.5,3158.7,3.78]
[1767825294302,1.53758979,3159.5,3158.7,6.94584335]
[1767825295005,1.53758979,3159.6,3158.8,1.65055953]
[1767825296204,1.53758979,3159.5,3158.8,1.65055953]
[1767825296608,1.53758979,3159.5,3158.8,4.8162716]
[1767825296813,1.53758979,3159.5,3158.8,5.99249261]
[1767825297511,1.53758979,3159.5,3158.8,2.82678054]
[1767825297707,1.53758979,3159.5,3158.8,5.99248399]
[1767825298412,1.53758979,3159.5,3158.8,2.82678054]
[1767825298916,1.53758979,3159.5,3158.8,1.65055953]
[1767825299122,1.53758979,3159.5,3158.7,3.78]
[1767825299607,1.53758979,3159.5,3158.3,1.65055953]
[1767825299608,1.56928867,3159.4,3158.3,1.65055953]
[1767825299794,1.53758979,3159.3,3158.4,1.65055953]
[1767825300109,1.53758979,3159.1,3158.4,1.65055953]
[1767825300407,1.53758979,3159.1,3158.4,2.13223565]
[1767825300813,1.53758979,3159.1,3158.3,3.16620844]
[1767825301494,1.53758979,3159.1,3157.6,3.99893291]
[1767825301680,1.53758979,3158.9,3158.2,4.81688539]
[1767825301879,1.53758979,3158.9,3158.3,1.65055953]
[1767825303425,1.61540953,3158.7,3157.7,1.5578184]
[1767825303594,1.78012037,3158.7,3157.9,3.16664714]
[1767825303923,1.61540953,3158.7,3157.8,4.72453174]
[1767825304222,1.61540953,3158.5,3157.7,3.16683055]
[1767825304724,1.61540953,3158.5,3157.6,1.5588184]
[1767825304886,1.61540953,3158.5,3157.6,0.001]
[1767825305086,1.61540953,3158.3,3157.6,0.001]
[1767825306195,1.61540953,3158.3,3157.6,1.5588184]
[1767825306480,1.61540953,3158.3,3157.6,0.001]
[1767825307092,1.61540953,3158.1,3157.6,0.001]
[1767825309911,1.61540953,3158.0,3157.6,0.001]
[1767825310090,1.61540953,3157.8,3157.0,3.16753036]
[1767825311318,1.61540953,3157.8,3157.0,4.72382412]
[1767825311820,1.61540953,3157.8,3157.0,1.55629376]
[1767825312719,1.63157631,3157.7,3156.9,1.55629376]
[1767825313019,1.63157631,3157.6,3156.9,1.55629376]
[1767825313917,1.63157631,3157.6,3156.9,4.72395824]
[1767825314296,2.49427519,3157.8,3157.0,1.55629376]
[1767825314594,1.63157631,3157.7,3157.0,1.55629376]
[1767825316299,1.63157631,3157.7,3157.0,3.16756116]
[1767825316616,1.63157631,3157.5,3156.9,3.1676423]
[1767825316916,1.66327519,3157.5,3156.8,3.16772143]
[1767825319526,1.66327519,3157.5,3156.7,3.16785856]
[1767825319897,1.66327519,3157.5,3156.6,5.33629376]
[1767825320094,1.66327519,3157.5,3156.6,6.94793963]
[1767825320324,1.63157631,3157.3,3156.6,6.94793963]
[1767825320826,1.66327519,3157.3,3156.6,3.78]
[1767825321036,1.66327519,3157.3,3156.6,6.94793205]
[1767825321904,1.66327519,3157.3,3156.6,3.78]
[1767825323540,1.63157631,3157.1,3156.5,0.001]
[1767825323699,1.87783394,3157.0,3156.9,0.001]
[1767825324411,1.87783394,3157.0,3156.5,0.001]
[1767825326715,1.63157631,3156.8,3155.5,1.55729376]
[1767825326908,1.63157631,3156.8,3155.9,1.55629376]
[1767825327110,2.46257631,3156.8,3155.9,1.55629376]
[1767825327441,0.24625763,3156.7,3155.9,1.55629376]
[1767825327645,1.87783394,3156.7,3156.0,1.55629376]
[1767825328006,1.63157631,3156.6,3155.7,1.55629376]
[1767825328223,1.63157631,3156.6,3155.8,1.55629376]
[1767825329040,1.66327519,3156.6,3155.8,1.55629376]
[1767825329334,1.63157631,3156.5,3155.8,1.55629376]
[1767825331137,1.63157631,3156.5,3155.8,4.72502745]
[1767825331339,1.63157631,3156.5,3155.8,1.55629376]
[1767825332254,1.61979107,3156.4,3155.8,1.55629376]
[1767825332645,1.61979107,3156.4,3155.6,4.73003832]
[1767825332848,1.61979107,3156.4,3155.5,4.00103471]
[1767825332849,1.61979107,3156.3,3155.5,4.00103471]
[1767825333167,1.65148995,3156.3,3155.6,3.16889467]
[1767825333324,1.65148995,3156.3,3155.5,0.001]
[1767825335134,1.61979107,3156.1,3155.5,0.001]
[1767825336664,1.61979107,3156.0,3155.5,0.001]
[1767825336843,1.65148995,3156.0,3155.5,0.001]
[1767825338047,1.61979107,3156.0,3155.5,0.001]
[1767825339570,0.03169888,3155.9,3155.5,0.001]
[1767825340452,1.65148995,3155.9,3155.5,0.001]
[1767825341682,1.81663894,3155.9,3155.5,0.001]
[1767825341838,1.78494006,3155.9,3155.5,0.001]
[1767825342439,0.03169888,3155.8,3155.5,0.001]
[1767825343196,1.78494006,3155.9,3155.5,0.001]
[1767825343674,1.61979107,3156.3,3155.5,1.56211014]
[1767825344543,1.61979107,3156.5,3155.5,1.56211014]
[1767825344967,1.8660487,3156.7,3155.7,1.56111014]
[1767825345636,1.65148995,3156.6,3155.7,1.56111014]
[1767825346971,1.65148995,3156.6,3155.8,1.56211014]
[1767825347172,2.12635446,3156.5,3155.8,1.56211014]
[1767825348065,1.61979107,3156.4,3155.8,1.56211014]
[1767825348369,1.65148995,3156.6,3155.8,1.56211014]
[1767825350067,1.61979107,3156.5,3155.8,1.56211014]
[1767825350368,1.65148995,3156.5,3155.8,1.56211014]
[1767825351570,2.15806211,3156.5,3155.8,1.56211014]
[1767825353883,1.61979107,3156.4,3155.8,1.56211014]
[1767825358487,1.61979107,3156.4,3156.1,0.001]
[1767825359383,2.15806211,3156.5,3156.1,0.001]
[1767825359750,1.65148995,3156.5,3156.1,0.001]
[1767825376397,1.61979107,3156.5,3156.1,0.001]
[1767825382110,1.59988854,3156.5,3156.1,0.001]
[1767825382609,1.59988854,3156.5,3156.4,0.001]
[1767825382902,1.59988854,3156.5,3156.1,0.001]
[1767825383082,0.86369888,3156.6,3156.1,0.001]
[1767825383279,1.60956553,3156.5,3156.1,0.001]
[1767825386291,2.44156553,3156.7,3156.1,0.001]
[1767825386607,1.60956553,3156.6,3156.1,0.001]
[1767825388096,1.60956553,3156.6,3156.1,3.16946741]
[1767825390784,1.60956553,3156.6,3156.1,0.001]
[1767825392429,1.60956553,3156.6,3156.1,0.79781408]
[1767825392830,1.60956553,3156.6,3156.1,3.96619672]
[1767825393620,0.832,3156.8,3156.2,1.62982428]
[1767825393828,2.49470291,3156.8,3156.2,1.62982428]
[1767825394402,2.49470291,3156.8,3156.4,0.001]
[1767825395127,1.66270291,3156.8,3156.4,0.001]
[1767825395617,1.66270291,3156.7,3156.4,0.001]
[1767825395822,1.66270291,3156.6,3156.4,0.001]
[1767825395997,1.66270291,3156.6,3156.1,0.001]
[1767825397006,4.86218148,3156.8,3156.1,1.63082428]
[1767825397206,2.23212106,3156.7,3156.1,1.63082428]
[1767825399801,1.66270291,3156.6,3156.1,0.001]
[1767825406008,1.69440179,3156.6,3156.4,0.001]
[1767825406208,1.66270291,3156.6,3156.1,0.001]
[1767825406529,2.20270324,3156.5,3156.1,0.001]
[1767825407135,1.66270291,3156.4,3156.1,0.001]
[1767825409613,1.69440179,3156.4,3156.1,0.001]
[1767825410015,1.66270291,3156.3,3156.1,0.001]
[1767825410219,1.69440179,3156.3,3155.8,0.001]
[1767825410415,2.31786401,3156.3,3155.8,0.001]
[1767825411342,0.03169888,3156.3,3155.9,1.62982428]
[1767825411507,0.832,3156.6,3155.9,1.62982428]
[1767825411704,1.66270291,3156.7,3155.9,1.62982428]
[1767825411923,0.832,3156.6,3155.9,1.62982428]
[1767825413255,1.66270291,3157.1,3156.0,1.62982428]
[1767825413540,1.69440179,3157.0,3156.2,1.62982428]
[1767825413711,1.66270291,3157.0,3156.2,1.62982428]
[1767825415724,3.16753892,3157.1,3156.3,1.62982428]
[1767825415924,3.9994024,3157.2,3156.3,1.62982428]
[1767825416246,3.06091344,3157.2,3156.3,1.62982428]
[1767825416449,2.49470291,3157.2,3156.3,1.62982428]
[1767825417047,5.66207303,3157.2,3156.3,1.62982428]
[1767825417357,5.66207303,3157.2,3156.4,1.62982428]
[1767825417557,2.49470291,3157.2,3156.4,1.62982428]
[1767825418049,0.002,3156.7,3156.4,1.62982428]
[1767825418286,0.002,3157.0,3156.5,1.62982428]
[1767825419353,0.002,3157.0,3156.6,1.62982428]
[1767825422154,1.60505781,3157.2,3156.6,1.62982428]
[1767825422541,1.60505781,3157.3,3156.6,1.62982428]
[1767825422734,1.60505781,3157.3,3156.6,1.87246933]
[1767825422934,1.60505781,3157.3,3156.6,1.62982428]
[1767825423954,1.60505781,3157.3,3156.6,4.79777648]
[1767825424778,1.60505781,3157.3,3156.7,1.57219252]
[1767825425358,1.60505781,3157.2,3156.5,4.7402431]
[1767825430192,1.60505781,3157.2,3156.8,0.001]
[1767825430784,1.60505781,3157.1,3156.8,0.001]
[1767825433077,4.7725963,3157.1,3156.8,0.001]
[1767825433340,1.60505781,3157.0,3156.3,4.74043977]
[1767825434295,1.60505781,3157.0,3156.4,1.57219252]
[1767825435159,1.60505781,3157.0,3156.4,4.74027327]
[1767825435561,1.60505781,3157.0,3156.4,1.57219252]
[1767825435805,1.60505781,3157.0,3156.4,4.74033752]
[1767825437887,1.60505781,3157.0,3156.4,1.57219252]
[1767825438503,1.60505781,3157.0,3156.4,4.74034888]
[1767825440599,0.4804024,3157.2,3156.5,1.57219252]
[1767825440901,1.60505781,3157.1,3156.5,1.57219252]
[1767825441670,1.60505781,3157.1,3156.7,0.001]
[1767825444775,1.60505781,3157.3,3156.7,0.001]
[1767825446802,1.60505781,3157.3,3156.7,1.57319252]
[1767825447103,1.60505781,3157.3,3156.7,4.7410546]
[1767825449007,1.60505781,3157.3,3156.7,1.57319252]
[1767825449503,1.60505781,3157.3,3156.7,0.001]
[1767825449669,1.60505781,3157.3,3156.7,4.74104737]
[1767825451577,1.60505781,3157.3,3156.7,1.57319252]
[1767825452307,1.60505781,3157.3,3156.7,4.74104204]
[1767825453511,1.60505781,3157.3,3156.8,0.001]
[1767825453715,0.002,3157.0,3156.8,0.001]
[1767825457891,0.002,3157.0,3156.9,1.53226108]
[1767825458404,0.002,3157.0,3156.9,4.69992556]
[1767825463341,1.59147531,3158.2,3157.0,1.53226108]
[1767825463481,1.59147531,3158.1,3157.1,1.53226108]
[1767825463678,1.59147531,3158.1,3157.3,1.53226108]
[1767825464200,1.59147531,3157.9,3157.1,1.53226108]
[1767825464692,1.59147531,3157.9,3157.1,4.69965294]
[1767825466713,1.59347531,3157.9,3157.1,4.69965294]
[1767825467012,1.59347531,3157.9,3157.1,5.86437295]
[1767825468395,0.03169888,3157.8,3157.1,4.33211187]
[1767825468617,1.59147531,3157.7,3157.1,4.33211187]
[1767825470018,1.59347531,3157.9,3157.2,1.53226108]
[1767825472921,0.002,3157.9,3157.3,1.53226108]
[1767825473124,0.002,3157.9,3157.4,2.3189503]
[1767825473340,0.002,3157.9,3157.5,1.53226108]
[1767825476532,0.002,3157.9,3157.6,3.16696224]
[1767825478529,0.002,3157.9,3157.7,4.69910434]
[1767825478710,0.002,3157.9,3157.7,5.48572029]
[1767825478910,0.002,3157.9,3157.8,1.53226108]
[1767825479808,0.002,3158.2,3157.9,1.53226108]
[1767825480730,0.002,3158.2,3157.9,7.8655243]
[1767825481310,0.002,3158.2,3158.0,1.53226108]
[1767825481532,0.002,3158.2,3158.1,0.46988629]
[1767825481733,0.002,3158.2,3157.7,1.54771418]
[1767825481936,0.002,3158.2,3157.7,4.71449415]
[1767825482113,0.002,3158.2,3157.7,3.16677997]
[1767825482440,1.53434266,3158.2,3157.7,3.16677997]
[1767825482736,1.53434266,3158.2,3157.8,3.16675408]
[1767825482941,1.53434266,3158.2,3157.9,0.31667541]
[1767825483241,1.53434266,3158.2,3157.9,3.48331571]
[1767825483440,1.53434266,3158.2,3157.3,3.78]
[1767825483743,1.53234266,3158.0,3157.4,3.1671306]
[1767825483920,1.53234266,3158.0,3157.3,5.28806373]
[1767825484241,1.53234266,3158.0,3157.4,4.67521361]
[1767825487652,1.53234266,3158.0,3157.3,3.16726316]
[1767825487833,1.53234266,3158.0,3157.3,6.03717531]
[1767825488332,1.53234266,3158.0,3157.3,9.20443847]
[1767825488641,1.53234266,3158.0,3157.4,1.50806373]
[1767825489232,1.53234266,3158.0,3157.3,1.36184842]
[1767825489433,1.53234266,3157.8,3157.2,6.94731367]
[1767825490551,1.53234266,3157.8,3157.1,1.50806373]
[1767825490855,1.53234266,3157.7,3157.0,3.78]
[1767825491040,1.53234266,3157.7,3156.8,5.28906373]
[1767825491250,1.53234266,3157.7,3156.8,0.001]
[1767825491566,1.53234266,3157.5,3156.8,0.001]
[1767825492121,1.53234266,3157.4,3156.8,0.001]
[1767825494245,1.53234266,3157.3,3156.8,0.001]
[1767825496658,1.53234266,3157.2,3156.8,0.001]
[1767825498262,4.69976764,3157.2,3156.7,0.001]
[1767825498467,2.31904623,3157.1,3156.7,0.001]
[1767825498958,1.53234266,3157.0,3156.7,0.001]
[1767825500150,1.53234266,3157.0,3156.2,1.50806373]
[1767825502163,1.53234266,3157.0,3156.3,1.50806373]
[1767825502461,1.53234266,3156.9,3156.3,1.50806373]
[1767825502634,2.08100403,3156.9,3156.2,4.67642135]
[1767825502836,2.08100403,3156.9,3156.1,3.781]
[1767825502837,2.08100403,3156.9,3156.3,1.50806373]
[1767825503346,2.08100403,3156.9,3156.5,0.001]
[1767825503940,1.53234266,3156.8,3156.5,0.001]
[1767825504144,0.52485715,3156.8,3156.5,0.001]
[1767825507669,1.53234266,3156.9,3156.5,0.001]
[1767825508049,2.31904623,3157.1,3156.5,0.001]
[1767825508674,1.53234266,3157.0,3156.5,0.001]
[1767825515062,0.002,3156.7,3156.5,0.001]
[1767825533797,0.002,3157.0,3156.7,1.49971202]
[1767825534108,0.002,3157.0,3156.5,1.50071202]
[1767825534272,0.002,3157.0,3156.6,1.49971202]
[1767825537390,0.002,3157.0,3156.5,0.46788783]
[1767825537704,0.002,3157.0,3156.5,1.96759985]
[1767825539002,0.002,3156.7,3156.5,1.96759985]
[1767825541288,0.002,3156.7,3156.5,0.46788783]
[1767825542399,0.002,3156.7,3156.6,0.36360541]
[1767825545385,0.002,3156.7,3156.6,3.53157094]
[1767825545580,0.002,3156.7,3156.6,5.07561314]
[1767825545778,0.002,3157.0,3156.6,5.07561314]
[1767825546304,0.002,3157.0,3156.7,1.5440422]
[1767825546503,0.002,3157.0,3156.8,0.50756131]
[1767825548714,0.002,3157.0,3156.6,5.07554373]
[1767825549021,0.002,3157.0,3156.8,1.5440422]
[1767825549714,0.002,3157.0,3156.7,3.16786266]
[1767825551087,0.002,3157.0,3156.6,5.07557239]
[1767825551793,0.002,3157.0,3156.7,1.5440422]
[1767825552008,0.002,3157.0,3156.8,0.50755724]
[1767825552208,0.002,3157.0,3156.8,2.05159944]
[1767825552892,0.002,3157.0,3156.8,5.21936187]
[1767825553093,0.002,3157.0,3156.8,2.05159944]
[1767825553287,0.002,3157.0,3156.8,5.21935446]
[1767825553513,0.002,3157.0,3156.9,0.52193545]
[1767825554417,0.002,3157.0,3156.9,3.68959993]
[1767825554597,0.002,3157.0,3156.9,0.52193545]
[1767825554794,0.002,3157.0,3156.8,5.21930126]
[1767825555187,0.002,3157.0,3156.9,3.16766448]
[1767825556825,0.002,3157.0,3156.8,5.21932638]
[1767825565212,1.44256931,3157.0,3156.8,0.50755724]
[1767825566410,1.44256931,3157.0,3156.6,6.94790411]
[1767825566411,1.44256931,3157.0,3156.6,3.78]
[1767825567715,1.44056931,3156.9,3156.6,3.78]
[1767825569719,1.44056931,3156.9,3156.5,0.001]
[1767825571034,1.44056931,3156.8,3156.5,0.001]
[1767825571234,1.44056931,3156.7,3155.5,1.54005162]
[1767825571463,1.44056931,3156.5,3155.5,1.54005162]
[1767825574128,3.16816626,3156.4,3155.8,0.001]
[1767825574340,1.48177541,3156.3,3155.8,0.001]
[1767825574529,1.48177541,3156.1,3155.8,0.001]
[1767825575114,1.48177541,3156.1,3155.4,3.16911043]
[1767825575314,1.48177541,3156.1,3155.4,1.54086208]
[1767825575716,1.48177541,3156.1,3155.2,1.54186208]
[1767825576243,1.48177541,3155.9,3155.2,1.54186208]
[1767825576407,1.48177541,3155.7,3155.2,3.781]
[1767825576612,1.48177541,3155.7,3153.3,0.08900757]
[1767825576613,1.48177541,3155.7,3154.7,1.54086208]
[1767825577244,1.48177541,3155.7,3154.5,4.71089708]
[1767825577547,1.48177541,3155.7,3154.6,1.54086208]
[1767825578241,1.48177541,3155.7,3154.6,4.71081356]
[1767825578422,1.48177541,3155.4,3154.7,1.54086208]
[1767825579960,1.48177541,3155.4,3154.5,3.17005499]
[1767825579961,1.48177541,3155.4,3154.5,1.54086208]
[1767825580156,1.48177541,3155.4,3154.4,1.54086208]
[1767825580319,1.48177541,3155.4,3154.6,3.16993688]
[1767825580520,1.48177541,3155.3,3154.5,3.17007449]
[1767825580823,1.48177541,3155.1,3154.5,3.17007449]
[1767825581044,1.48177541,3155.1,3154.5,4.71093657]
[1767825583145,1.48177541,3155.1,3154.5,3.17007449]
[1767825585245,1.48177541,3155.1,3154.3,4.71111002]
[1767825585246,1.48177541,3155.0,3153.8,1.54086208]
[1767825585444,1.48177541,3154.8,3153.8,1.54086208]
[1767825586818,1.48177541,3154.8,3153.6,3.17097792]
[1767825587024,1.48177541,3154.8,3153.7,3.17082932]
[1767825587250,1.48177541,3154.6,3153.6,1.54086208]
[1767825590251,1.48177541,3154.6,3153.7,4.71174073]
[1767825590456,1.48177541,3154.4,3153.7,4.71174073]
[1767825590840,1.48177541,3154.4,3153.7,3.17087865]
[1767825591723,1.48177541,3154.4,3153.6,3.1709388]
[1767825593855,1.48177541,3154.3,3153.6,3.1709388]
[1767825594043,1.48177541,3154.3,3153.5,3.17102767]
[1767825594245,1.48177541,3154.3,3153.4,1.54086208]
[1767825594435,1.48177541,3154.6,3153.6,1.54086208]
[1767825596460,1.48177541,3154.6,3153.7,6.3417573]
[1767825596662,1.48177541,3154.6,3153.7,7.1737573]
[1767825598658,1.48177541,3154.6,3153.9,0.001]
[1767825598828,0.002,3154.3,3154.0,1.54086208]
[1767825599029,0.002,3154.3,3153.9,0.001]
[1767825599256,0.002,3154.3,3153.9,0.71847573]
[1767825600330,0.002,3154.6,3154.0,1.54086208]
[1767825600533,1.48177541,3155.4,3154.2,1.54086208]
[1767825600754,3.16906987,3155.5,3154.4,1.54086208]
[1767825600755,1.48177541,3155.2,3154.4,1.54086208]
[1767825601130,1.48177541,3155.2,3154.3,0.832]
[1767825601334,1.48177541,3155.0,3153.9,0.001]
[1767825601530,1.48177541,3154.8,3153.9,0.001]
[1767825601930,1.48177541,3154.8,3153.9,3.17165706]
[1767825602868,1.46441198,3154.7,3153.9,3.17165706]
[1767825603640,1.46441198,3154.7,3153.9,0.001]
[1767825604861,1.46441198,3154.7,3154.0,4.56676724]
[1767825605060,4.63411963,3154.9,3154.1,1.3961902]
[1767825605259,4.63389966,3155.1,3154.1,1.3961902]
[1767825605457,1.46441198,3155.0,3154.0,7.19820375]
[1767825605658,1.46441198,3155.0,3154.1,1.3961902]
[1767825605994,1.46441198,3155.0,3154.2,2.2556296]
[1767825606170,1.46441198,3155.0,3154.3,0.832]
[1767825607071,1.46441198,3155.0,3154.3,2.2281902]
[1767825611258,4.63399188,3155.0,3154.3,2.2281902]
[1767825611568,1.46441198,3155.0,3154.4,1.3961902]
[1767825611879,1.46441198,3155.0,3154.5,0.001]
[1767825612046,0.002,3154.7,3154.5,0.001]
[1767825613156,1.46641198,3155.0,3154.5,0.001]